[Event "80th ARM-ch 1st League 2019"]
[Site "Yerevan"]
[Date "2019.08.19"]
[Round "2.6"]
[White "Shahinyan, David"]
[Black "Mikaelyan, Arman"]
[Result "1/2-1/2"]
[ECO "A45"]
[WhiteElo "2452"]
[BlackElo "2454"]
[Annotator "ChessBase"]
[PlyCount "156"]
[EventDate "2019.08.18"]
[EventType "tourn"]
[EventCountry "ARM"]
[SourceTitle "playchess.com"]
[Source "ChessBase"]
[SourceQuality "1"]
[TimeControl "40/5400+30:1800+30"]

1. d4 {[%emt 0:00:08]} Nf6 {[%emt 0:01:27]} 2. Bf4 {[%emt 0:00:58]} d5 {[%emt 0:03:36]} 3. e3 {[%emt 0:02:30]} e6 {[%emt 0:01:05]} 4. Nd2 {[%emt 0:02:12]} c5 {[%emt 0:00:39]} 5. c3 {[%emt 0:00:24]} Bd6 {[%emt 0:04:33]} 6. Bg3 {[%emt 0:01:30]} Qc7 {[%emt 0:01:33]} 7. Ngf3 {[%emt 0:07:13]} Nbd7 {[%emt 0:02:23]} 8. Be2 {[%emt 0:09:54]} O-O {[%emt 0:01:08]} 9. O-O {[%emt 0:01:27]} b6 {[%emt 0:06:23]} 10. Rc1 {[%emt 0:03:20]} Bb7 {[%emt 0:06:15]} 11. c4 {[%emt 0:02:19]} Bxg3 {[%emt 0:01:00]} 12. hxg3 {[%emt 0:00:09]} dxc4 {[%emt 0:01:26]} 13. Bxc4 {[%emt 0:02:35]} Rad8 {[%emt 0:06:24]} 14. Qe2 {[%emt 0:10:01]} Qb8 {[%emt 0:01:41]} 15. Ba6 {[%emt 0:14:13]} Bd5 {[%emt 0:06:04]} 16. Bd3 {[%emt 0:06:55]} cxd4 {[%emt 0:16:10]} 17. Nxd4 {[%emt 0:01:06]} Nc5 {[%emt 0:03:12]} 18. Bc4 {[%emt 0:10:25]} Qb7 {[%emt 0:05:34]} 19. b4 {[%emt 0:01:48]} e5 {[%emt 0:10:28]} 20. bxc5 {[%emt 0:16:04]} exd4 {[%emt 0:00:51]} 21. Bxd5 {[%emt 0:02:10]} Qxd5 {[%emt 0:00:39]} 22. exd4 {[%emt 0:00:35]} bxc5 {[%emt 0:01:22]} 23. Rxc5 {[%emt 0:00:04]} Qxa2 {[%emt 0:00:52]} 24. Qd3 {[%emt 0:00:01]} Rfe8 {[%emt 0:00:58]} 25. Nc4 {[%emt 0:01:09]} Qa4 {[%emt 0:03:25]} 26. Rd1 {[%emt 0:01:52]} h6 {[%emt 0:01:19]} 27. Ne3 {[%emt 0:00:23]} Rd7 {[%emt 0:02:34]} 28. d5 {[%emt 0:00:56]} Red8 {[%emt 0:02:37]} 29. Qd4 {[%emt 0:00:55]} Qxd4 {[%emt 0:04:04]} 30. Rxd4 {[%emt 0:00:00]} Rb7 {[%emt 0:00:12]} 31. Rc1 {[%emt 0:00:55]} g6 {[%emt 0:00:38]} 32. g4 {[%emt 0:00:24]} Rd6 {[%emt 0:01:30]} 33. g3 {[%emt 0:00:27]} a5 {[%emt 0:01:02]} 34. Rc5 {[%emt 0:00:36]} Rb4 {[%emt 0:02:04]} 35. Rf4 {[%emt 0:01:17]} Rxf4 {[%emt 0:01:14]} 36. gxf4 {[%emt 0:00:00]} a4 {[%emt 0:00:12]} 37. Ra5 {[%emt 0:00:14]} a3 {[%emt 0:00:28]} 38. Rxa3 {[%emt 0:00:18]} Kf8 {[%emt 0:00:17]} 39. Ra5 {[%emt 0:00:25]} Rb6 {[%emt 0:01:18]} 40. Kg2 {[%emt 0:00:00]} Rb2 {[%emt 0:00:00]} 41. Kf3 {[%emt 0:04:26]} Rd2 {[%emt 0:04:28]} 42. Ra7 {[%emt 0:04:24]} Rd4 {[%emt 0:04:10]} 43. Ra8+ {[%emt 0:02:43]} Ke7 {[%emt 0:02:13]} 44. Rh8 {[%emt 0:02:32]} Nxd5 {[%emt 0:02:35]} 45. Nxd5+ {[%emt 0:00:04]} Rxd5 {[%emt 0:00:04]} 46. Rxh6 {[%emt 0:00:03]} Rd3+ {[%emt 0:00:40]} 47. Ke4 {[%emt 0:00:15]} Rd2 {[%emt 0:00:06]} 48. Ke3 {[%emt 0:00:23]} Ra2 {[%emt 0:00:09]} 49. Rh8 {[%emt 0:00:12]} Ra3+ {[%emt 0:01:01]} 50. Ke4 {[%emt 0:00:04]} f5+ {[%emt 0:03:00]} 51. gxf5 {[%emt 0:00:32]} Ra4+ {[%emt 0:00:02]} 52. Ke3 {[%emt 0:01:35]} Ra3+ {[%emt 0:01:30]} 53. Ke2 {[%emt 0:00:20]} gxf5 {[%emt 0:00:09]} 54. Rc8 {[%emt 0:00:18]} Ra4 {[%emt 0:00:25]} 55. Ke3 {[%emt 0:00:08]} Re4+ {[%emt 0:00:26]} 56. Kf3 {[%emt 0:00:03]} Ra4 {[%emt 0:00:11]} 57. Rc6 {[%emt 0:00:34]} Rb4 {[%emt 0:00:24]} 58. Ra6 {[%emt 0:01:56]} Rc4 {[%emt 0:00:17]} 59. Ke3 {[%emt 0:00:41]} Re4+ {[%emt 0:00:05]} 60. Kf3 {[%emt 0:00:02]} Rb4 {[%emt 0:00:09]} 61. Kg3 {[%emt 0:00:01]} Rc4 {[%emt 0:00:15]} 62. f3 {[%emt 0:01:53]} Rb4 {[%emt 0:00:09]} 63. Rh6 {[%emt 0:00:01]} Ra4 {[%emt 0:00:23]} 64. Rh4 {[%emt 0:00:07]} Kf6 {[%emt 0:00:56]} 65. Kf2 {[%emt 0:00:15]} Kg6 {[%emt 0:00:22]} 66. Ke3 {[%emt 0:00:21]} Ra3+ {[%emt 0:00:08]} 67. Ke2 {[%emt 0:00:12]} Ra2+ 68. Ke3 Ra3+ {[%emt 0:00:12]} 69. Kf2 {[%emt 0:00:03]} Ra2+ {[%emt 0:00:15]} 70. Kg3 {[%emt 0:00:02]} Ra4 {[%emt 0:00:07]} 71. Rh8 {[%emt 0:00:03]} Rb4 {[%emt 0:00:24]} 72. Ra8 {[%emt 0:00:03]} Rc4 {[%emt 0:00:25]} 73. Ra6+ {[%emt 0:00:02]} Kf7 {[%emt 0:00:14]} 74. Ra3 {[%emt 0:00:02]} Kg6 {[%emt 0:00:10]} 75. Ra1 {[%emt 0:00:29]} Rb4 {[%emt 0:00:11]} 76. Rg1 {[%emt 0:00:02]} Kf6 {[%emt 0:00:15]} 77. Rc1 {[%emt 0:00:29]} Kg6 {[%emt 0:00:06]} 78. Rc6+ {[%emt 0:00:13]} Kf7 {[%emt 0:00:12]} 1/2-1/2

[Event "80th ARM-ch 1st League 2019"]
[Site "Yerevan"]
[Date "2019.08.19"]
[Round "2.7"]
[White "Hoghmrtsyan, Artur"]
[Black "Baghdasaryan, Vahe"]
[Result "0-1"]
[ECO "A40"]
[WhiteElo "2317"]
[BlackElo "2373"]
[Annotator "ChessBase"]
[PlyCount "82"]
[EventDate "2019.08.18"]
[EventType "tourn"]
[EventCountry "ARM"]
[SourceTitle "playchess.com"]
[Source "ChessBase"]
[SourceQuality "1"]
[TimeControl "40/5400+30:1800+30"]

1. d4 {[%emt 0:00:00]} e6 {[%emt 0:00:33]} 2. c4 {[%emt 0:01:35]} b6 {[%emt 0:00:35]} 3. a3 {[%emt 0:01:31]} Bb7 {[%emt 0:01:42]} 4. Nc3 {[%emt 0:00:13]} f5 {[%emt 0:01:10]} 5. d5 {[%emt 0:08:28]} Na6 {[%emt 0:00:42]} 6. Nf3 {[%emt 0:05:34]} Nf6 {[%emt 0:01:26]} 7. Bf4 {[%emt 0:13:40]} Nc5 {[%emt 0:07:34]} 8. e3 {[%emt 0:12:24]} d6 {[%emt 0:06:34]} 9. h3 {[%emt 0:17:13]} Qe7 {[%emt 0:10:58]} 10. Be2 {[%emt 0:04:24]} g6 {[%emt 0:07:21]} 11. b4 {[%emt 0:06:06]} Nfe4 {[%emt 0:08:24]} 12. Nb5 {[%emt 0:04:09]} a6 {[%emt 0:14:50]} 13. Nxd6+ {[%emt 0:03:37]} cxd6 {[%emt 0:02:44]} 14. bxc5 {[%emt 0:00:06]} bxc5 {[%emt 0:01:37]} 15. Qa4+ {[%emt 0:02:02]} Qd7 {[%emt 0:00:39]} 16. Qxd7+ {[%emt 0:00:43]} Kxd7 {[%emt 0:00:02]} 17. dxe6+ {[%emt 0:02:31]} Kxe6 {[%emt 0:04:04]} 18. O-O {[%emt 0:01:01]} Be7 {[%emt 0:05:41]} 19. Bd3 {[%emt 0:03:02]} Rab8 {[%emt 0:04:04]} 20. Rfd1 {[%emt 0:03:01]} Nc3 {[%emt 0:01:59]} 21. Rd2 {[%emt 0:00:32]} Bxf3 {[%emt 0:08:33]} 22. gxf3 {[%emt 0:00:06]} Bf6 {[%emt 0:01:28]} 23. Rc1 {[%emt 0:00:48]} Rhd8 {[%emt 0:00:09]} 24. Rcc2 {[%emt 0:04:23]} Rb3 {[%emt 0:02:14]} 25. Kg2 {[%emt 0:00:57]} a5 {[%emt 0:04:07]} 26. Bf1 {[%emt 0:01:26]} a4 {[%emt 0:01:43]} 27. Rd3 {[%emt 0:00:31]} Nb1 {[%emt 0:00:32]} 28. Rd1 {[%emt 0:00:47]} Nxa3 {[%emt 0:00:58]} 29. Rcd2 {[%emt 0:00:12]} Rb6 {[%emt 0:00:38]} 30. e4 {[%emt 0:01:23]} Nb1 {[%emt 0:01:00]} 31. exf5+ {[%emt 0:00:34]} gxf5 {[%emt 0:00:06]} 32. Re1+ {[%emt 0:00:52]} Kf7 {[%emt 0:00:13]} 33. Ra2 {[%emt 0:01:21]} Nc3 {[%emt 0:00:14]} 34. Ra3 {[%emt 0:00:32]} Rb3 {[%emt 0:00:12]} 35. Rea1 {[%emt 0:00:13]} Rg8+ {[%emt 0:01:37]} 36. Kh1 {[%emt 0:00:25]} Nd1 {[%emt 0:00:45]} 37. Rxb3 {[%emt 0:00:23]} Nxf2+ {[%emt 0:00:07]} 38. Kh2 {[%emt 0:00:03]} axb3 {[%emt 0:00:19]} 39. Ra7+ {[%emt 0:00:16]} Ke6 {[%emt 0:00:19]} 40. Rb7 {[%emt 0:00:50]} b2 {[%emt 0:00:00]} 41. Be2 {[%emt 0:02:33]} Ra8 {[%emt 0:04:23]} 0-1

[Event "80th ARM-ch 1st League 2019"]
[Site "Yerevan"]
[Date "2019.08.20"]
[Round "3.1"]
[White "Chaqryan, Erik"]
[Black "Hoghmrtsyan, Artur"]
[Result "0-1"]
[ECO "D35"]
[WhiteElo "2105"]
[BlackElo "2317"]
[Annotator "NA"]
[PlyCount "90"]
[EventDate "2019.08.18"]
[EventType "tourn"]
[EventCountry "ARM"]
[SourceTitle "playchess.com"]
[Source "ChessBase"]
[SourceQuality "1"]
[TimeControl "40/5400+30:1800+30"]

1. d4 {[%emt 0:00:04]} d5 {[%emt 0:05:32]} 2. c4 {[%emt 0:00:14]} e6 {[%emt 0:00:06]} 3. Nc3 {[%emt 0:00:16]} Nf6 {[%emt 0:00:16]} 4. cxd5 {[%emt 0:01:55]} exd5 {[%emt 0:00:23]} 5. Bg5 {[%emt 0:00:17]} c6 {[%emt 0:00:08]} 6. e3 {[%emt 0:01:10]} Be7 {[%emt 0:01:46]} 7. Bd3 {[%emt 0:00:45]} O-O {[%emt 0:00:27]} 8. Qc2 {[%emt 0:03:35]} h6 {[%emt 0:00:38]} 9. Bf4 {[%emt 0:00:46]} Bd6 {[%emt 0:13:17]} 10. Nge2 {[%emt 0:06:44]} Re8 {[%emt 0:03:07]} 11. O-O-O {[%emt 0:05:22]} b5 {[%emt 0:09:21]} 12. h3 {[%emt 0:11:55]} Na6 {[%emt 0:03:04]} 13. Qd2 $17 {[%emt 0:18:33]} Nb4 {[%emt 0:26:41]} 14. Bb1 {[%emt 0:06:56]} Ne4 {[%emt 0:07:01]} 15. Nxe4 {[%emt 0:09:22]} dxe4 {[%emt 0:00:07]} 16. Bxd6 {[%emt 0:02:08]} Qxd6 {[%emt 0:00:02]} 17. Nc3 {[%emt 0:00:57]} Nd3+ {[%emt 0:06:35]} 18. Bxd3 {[%emt 0:01:12]} exd3 {[%emt 0:00:05]} 19. Qxd3 {[%emt 0:01:33]} b4 {[%emt 0:00:44]} 20. Na4 {[%emt 0:05:34]} Qd5 {[%emt 0:00:31]} 21. b3 {[%emt 0:05:04]} Qxg2 {[%emt 0:03:16]} 22. Qd2 {[%emt 0:02:21]} Bf5 {[%emt 0:02:29]} 23. Kb2 {[%emt 0:01:33]} a5 {[%emt 0:00:28]} 24. h4 {[%emt 0:01:18]} Rad8 {[%emt 0:01:49]} 25. Rc1 {[%emt 0:01:19]} Rd6 {[%emt 0:01:27]} 26. Rhg1 {[%emt 0:01:58]} Qh3 {[%emt 0:01:28]} 27. Rc5 {[%emt 0:03:34]} Be4 {[%emt 0:00:58]} 28. h5 {[%emt 0:04:32]} Qh2 {[%emt 0:00:40]} 29. Rd1 {[%emt 0:01:28]} Bf3 {[%emt 0:03:53]} 30. Rdc1 {[%emt 0:01:28]} Rf6 {[%emt 0:00:31]} 31. R1c2 {[%emt 0:00:18]} Qh4 {[%emt 0:03:08]} 32. Re5 {[%emt 0:01:05]} Rxe5 {[%emt 0:00:31]} 33. dxe5 {[%emt 0:00:01]} Rf5 {[%emt 0:00:55]} 34. Rc5 {[%emt 0:01:06]} Be4 {[%emt 0:00:31]} 35. f4 {[%emt 0:00:23]} Rxh5 {[%emt 0:00:28]} 36. e6 {[%emt 0:00:37]} Qf6+ {[%emt 0:00:31]} 37. Qd4 {[%emt 0:00:23]} Rh2+ {[%emt 0:00:16]} 38. Kc1 {[%emt 0:00:01]} Qxd4 {[%emt 0:01:42]} 39. exf7+ {[%emt 0:00:39]} Kxf7 {[%emt 0:00:06]} 40. exd4 {[%emt 0:00:00]} h5 {[%emt 0:00:00]} 41. Re5 {[%emt 0:01:50]} Bd5 {[%emt 0:08:10]} 42. Nc5 {[%emt 0:00:31]} h4 {[%emt 0:03:00]} 43. Rf5+ {[%emt 0:00:06]} Kg8 {[%emt 0:02:49]} 44. Rh5 {[%emt 0:01:56]} Bf3 {[%emt 0:01:59]} 45. Rg5 {[%emt 0:00:08]} Rg2 {[%emt 0:00:54]} 0-1

[Event "80th ARM-ch 1st League 2019"]
[Site "Yerevan"]
[Date "2019.08.20"]
[Round "3.2"]
[White "Baghdasaryan, Vahe"]
[Black "Khojayan, Vardan"]
[Result "1-0"]
[ECO "C52"]
[WhiteElo "2373"]
[BlackElo "2236"]
[Annotator "NA"]
[PlyCount "159"]
[EventDate "2019.08.18"]
[EventType "tourn"]
[EventCountry "ARM"]
[SourceTitle "playchess.com"]
[Source "ChessBase"]
[SourceQuality "1"]
[TimeControl "40/5400+30:1800+30"]

1. e4 {[%emt 0:00:00]} e5 {[%emt 0:00:56]} 2. Nf3 {[%emt 0:00:04]} Nc6 {[%emt 0:00:08]} 3. Bc4 {[%emt 0:00:06]} Bc5 {[%emt 0:00:17]} 4. b4 {[%emt 0:00:20]} Bxb4 {[%emt 0:01:02]} 5. c3 {[%emt 0:00:11]} Ba5 {[%emt 0:00:05]} 6. d4 {[%emt 0:00:46]} d6 {[%emt 0:09:04]} 7. Qb3 {[%emt 0:00:29]} Qd7 {[%emt 0:04:29]} 8. O-O {[%emt 0:01:36]} Bb6 {[%emt 0:08:36] C52: Evans Gambit Accepted: 5 c3 Ba5} 9. Nbd2 {[%emt 0:00:57]} (9. Bb5 a6 10. Ba4 Ba7 11. Na3 Nge7 12. d5 b5 13. Nxb5 axb5 14. Bxb5 O-O 15. dxc6 Qg4 16. Qc2 {0-1 (48) Li,C (2751)-Ding,L (2766) Huaian 2016}) 9... Nf6 {[%emt 0:04:14]} 10. dxe5 $1 {[%emt 0:16:34]} Ng4 {[%emt 0:00:28]} 11. exd6 {[%emt 0:02:13]} O-O $146 {[%emt 0:08:33]} ({Predecessor:} 11... cxd6 12. Ba3 O-O 13. Rad1 Qc7 14. Bd5 Na5 15. Qc2 Bc5 16. Bb2 {1-0 (63) Hartmann,J (2087)-Erofeev,A (1951) Willingen 2018}) 12. Bb5 {[%emt 0:02:47]} Qxd6 {[%emt 0:16:11]} 13. Ba3 {[%emt 0:06:26]} Bc5 {[%emt 0:03:50]} 14. Nc4 {[%emt 0:00:37]} Qe7 $1 {[%emt 0:00:12]} 15. Bxc6 {[%emt 0:00:31]} bxc6 {[%emt 0:00:04]} 16. Bxc5 {[%emt 0:01:07]} Qxc5 {[%emt 0:00:05]} 17. Qb4 {[%emt 0:00:13]} Qh5 {[%emt 0:04:05]} 18. Qa5 {[%emt 0:05:54]} Qb5 {[%emt 0:05:41]} 19. Qxb5 $11 {[%emt 0:03:41]} cxb5 {[%emt 0:00:05]} 20. Na5 {[%emt 0:00:38]} Nf6 {[%emt 0:04:21]} 21. e5 {[%emt 0:03:49]} Ne4 {[%emt 0:02:05]} 22. Rac1 {[%emt 0:00:51]} Be6 {[%emt 0:07:27]} 23. Nd4 {[%emt 0:07:37]} Bxa2 {[%emt 0:01:17]} 24. Nxb5 {[%emt 0:01:51]} Rab8 {[%emt 0:00:50]} 25. Nxa7 {[%emt 0:04:46]} Rb2 {[%emt 0:02:07]} 26. N7c6 {[%emt 0:02:39]} f6 {[%emt 0:01:02]} 27. f3 {[%emt 0:03:01]} Nc5 {[%emt 0:02:48]} 28. exf6 {[%emt 0:01:16]} Rxf6 {[%emt 0:00:46]} 29. Nb4 {[%emt 0:00:05]} Be6 {[%emt 0:01:46]} 30. Rf2 {[%emt 0:01:00]} Rxf2 {[%emt 0:01:08]} 31. Kxf2 {[%emt 0:00:03]} g5 {[%emt 0:00:16]} 32. Re1 {[%emt 0:03:56]} g4 {[%emt 0:00:26]} 33. Re5 {[%emt 0:00:56]} Nd7 {[%emt 0:00:31]} 34. Rg5+ {[%emt 0:08:22]} Kf8 {[%emt 0:00:40]} 35. Nd5 {[%emt 0:02:44]} Bxd5 {[%emt 0:00:08]} 36. Rxd5 {[%emt 0:00:02]} Ke7 {[%emt 0:00:06]} 37. Rh5 {[%emt 0:00:57]} h6 {[%emt 0:00:23]} 38. Nc4 {[%emt 0:00:11]} gxf3 {[%emt 0:03:06]} 39. gxf3 {[%emt 0:00:08]} Rc6 {[%emt 0:02:02]} 40. Ne3 {[%emt 0:00:00]} Kf7 {[%emt 0:00:00]} 41. c4 {[%emt 0:03:42]} Kg6 {[%emt 0:06:33]} 42. Rh4 {[%emt 0:02:02]} Nf6 {[%emt 0:04:26]} 43. f4 {[%emt 0:07:27]} Rd6 {[%emt 0:08:11]} 44. Rh3 {[%emt 0:15:35]} c5 {[%emt 0:05:27]} 45. Rxh6+ {[%emt 0:00:44]} Kf7 {[%emt 0:01:17]} 46. Kf3 {[%emt 0:01:31]} Rd4 {[%emt 0:00:36]} 47. Nf5 {[%emt 0:07:57]} Rd3+ {[%emt 0:00:15]} 48. Ke2 {[%emt 0:00:03]} Ra3 {[%emt 0:00:39]} 49. Rh8 {[%emt 0:01:11]} Ne4 {[%emt 0:01:02]} 50. h4 {[%emt 0:02:23]} Kg6 {[%emt 0:02:58]} 51. Ne3 {[%emt 0:01:26]} Ng3+ {[%emt 0:00:57]} 52. Kf2 {[%emt 0:00:53]} Ne4+ {[%emt 0:00:08]} 53. Kf3 {[%emt 0:00:12]} Nd2+ {[%emt 0:00:07]} 54. Ke2 {[%emt 0:00:09]} Ne4 {[%emt 0:01:26]} 55. h5+ {[%emt 0:01:05]} Kg7 {[%emt 0:00:19]} 56. Rc8 {[%emt 0:03:06]} Ng3+ {[%emt 0:01:42]} 57. Kf3 {[%emt 0:00:20]} Nf5 {[%emt 0:00:27]} 58. Re8 {[%emt 0:00:08]} Nd6 {[%emt 0:00:06]} 59. h6+ {[%emt 0:00:06]} Kh7 {[%emt 0:02:51]} 60. Re7+ {[%emt 0:00:18]} Kh8 {[%emt 0:00:13]} 61. Kg4 {[%emt 0:00:47]} Ra1 {[%emt 0:01:03]} 62. Rd7 {[%emt 0:00:58]} Rg1+ {[%emt 0:00:25]} 63. Kf3 {[%emt 0:00:56]} Rg6 {[%emt 0:00:15]} 64. h7 {[%emt 0:02:38]} Rh6 {[%emt 0:00:02]} 65. Ng4 {[%emt 0:00:38]} Nf7 {[%emt 0:05:11]} 66. Nxh6 {[%emt 0:06:15]} Ne5+ {[%emt 0:00:03]} 67. Ke4 {[%emt 0:00:04]} Nxd7 {[%emt 0:00:03]} 68. Kd5 {[%emt 0:00:21]} Kxh7 {[%emt 0:00:04]} 69. Ng4 {[%emt 0:00:08]} Kg7 {[%emt 0:00:10]} 70. f5 {[%emt 0:00:18]} Kf8 {[%emt 0:01:30]} 71. Kd6 {[%emt 0:01:16]} Ke8 {[%emt 0:00:19]} 72. f6 {[%emt 0:00:20]} Nf8 {[%emt 0:00:27]} 73. Ne5 {[%emt 0:00:54]} Nh7 {[%emt 0:00:03]} 74. f7+ {[%emt 0:00:11]} Kf8 {[%emt 0:00:04]} 75. Kxc5 {[%emt 0:00:09]} Ke7 {[%emt 0:00:20]} 76. Kb6 {[%emt 0:01:21]} Ng5 {[%emt 0:05:38]} 77. c5 {[%emt 0:00:12]} Ne4 {[%emt 0:00:09]} 78. c6 {[%emt 0:00:14]} Nd6 {[%emt 0:00:07]} 79. c7 {[%emt 0:00:07]} Kf8 {[%emt 0:00:34]} 80. Kc6 {[%emt 0:00:12]} 1-0

[Event "80th ARM-ch 1st League 2019"]
[Site "Yerevan"]
[Date "2019.08.20"]
[Round "3.3"]
[White "Gharibyan, Mamikon"]
[Black "Davtyan, Artur"]
[Result "1/2-1/2"]
[ECO "D37"]
[WhiteElo "2365"]
[BlackElo "2440"]
[Annotator "NA"]
[PlyCount "66"]
[EventDate "2019.08.18"]
[EventType "tourn"]
[EventCountry "ARM"]
[SourceTitle "playchess.com"]
[Source "ChessBase"]
[SourceQuality "1"]
[TimeControl "40/5400+30:1800+30"]

1. d4 {[%emt 0:00:00]} Nf6 {[%emt 0:00:37]} 2. c4 {[%emt 0:00:24]} e6 {[%emt 0:00:04]} 3. Nf3 {[%emt 0:00:33]} d5 {[%emt 0:00:03]} 4. Nc3 {[%emt 0:02:11]} Be7 {[%emt 0:00:06]} 5. cxd5 {[%emt 0:03:46]} exd5 {[%emt 0:00:24]} 6. Qc2 {[%emt 0:00:18]} c6 {[%emt 0:01:27]} 7. h3 {[%emt 0:05:12]} O-O {[%emt 0:03:35]} 8. Bf4 {[%emt 0:01:35]} g6 {[%emt 0:00:53]} 9. e3 {[%emt 0:14:19]} Bf5 {[%emt 0:00:02]} 10. Bd3 {[%emt 0:00:07]} Bxd3 {[%emt 0:00:14]} 11. Qxd3 {[%emt 0:00:04]} Na6 {[%emt 0:03:42]} 12. O-O {[%emt 0:03:10]} Nc7 {[%emt 0:00:10]} 13. Rab1 {[%emt 0:02:00]} Ne6 {[%emt 0:02:15]} 14. Bh2 {[%emt 0:04:00]} a5 {[%emt 0:02:21]} 15. a3 {[%emt 0:00:44]} Nd7 {[%emt 0:25:25]} 16. b4 {[%emt 0:09:51]} b5 $15 {[%emt 0:14:59]} 17. Na2 {[%emt 0:11:39]} Qc8 {[%emt 0:14:06]} 18. Ne5 {[%emt 0:12:08]} f6 {[%emt 0:09:15]} 19. Nxd7 {[%emt 0:02:25]} Qxd7 {[%emt 0:00:40]} 20. Rbc1 {[%emt 0:02:04]} Rfc8 {[%emt 0:04:13]} 21. Rc2 {[%emt 0:05:33]} axb4 {[%emt 0:08:21]} 22. Nxb4 {[%emt 0:00:33]} Ra4 {[%emt 0:00:05]} 23. Qb3 {[%emt 0:03:02]} Bxb4 {[%emt 0:00:01]} 24. axb4 {[%emt 0:00:05]} Rca8 {[%emt 0:00:08]} 25. Rfc1 {[%emt 0:01:46]} R8a6 {[%emt 0:01:09]} 26. Bg3 {[%emt 0:04:42]} Kf7 {[%emt 0:00:02]} 27. Qc3 {[%emt 0:02:49]} Qe7 {[%emt 0:07:03]} 28. Qd2 {[%emt 0:01:39]} Qd7 {[%emt 0:01:54]} 29. f3 Kg7 30. Kh2 {[%emt 0:07:19]} Ra3 {[%emt 0:00:33]} 31. Rc3 {[%emt 0:00:21]} R3a4 {[%emt 0:00:35]} 32. R3c2 {[%emt 0:00:01]} Ra3 {[%emt 0:00:04]} 33. Rc3 {[%emt 0:00:20]} R3a4 {[%emt 0:00:06]} 1/2-1/2

[Event "80th ARM-ch 1st League 2019"]
[Site "Yerevan"]
[Date "2019.08.20"]
[Round "3.4"]
[White "Hayrapetyan, Hovik"]
[Black "Harutjunyan, Gevorg"]
[Result "1-0"]
[ECO "E68"]
[WhiteElo "2453"]
[BlackElo "2455"]
[Annotator "ChessBase"]
[PlyCount "117"]
[EventDate "2019.08.18"]
[EventType "tourn"]
[EventCountry "ARM"]
[SourceTitle "playchess.com"]
[Source "ChessBase"]
[SourceQuality "1"]
[TimeControl "40/5400+30:1800+30"]

1. Nf3 {[%emt 0:00:00]} Nf6 {[%emt 0:00:00]} 2. g3 {[%emt 0:00:44]} g6 {[%emt 0:00:05]} 3. Bg2 {[%emt 0:00:05]} Bg7 {[%emt 0:00:11]} 4. O-O {[%emt 0:00:26]} O-O {[%emt 0:00:13]} 5. c4 {[%emt 0:02:05]} d6 {[%emt 0:00:33]} 6. d4 {[%emt 0:01:04]} Nbd7 {[%emt 0:00:57]} 7. Nc3 {[%emt 0:00:27]} e5 {[%emt 0:00:16]} 8. e4 {[%emt 0:00:28]} exd4 {[%emt 0:01:15]} 9. Nxd4 {[%emt 0:04:35]} Re8 {[%emt 0:00:22]} 10. Re1 {[%emt 0:00:36]} a6 {[%emt 0:01:20]} 11. h3 {[%emt 0:05:05]} Rb8 {[%emt 0:03:13]} 12. Be3 {[%emt 0:02:01]} Ne5 {[%emt 0:02:54]} 13. b3 {[%emt 0:08:08]} c5 {[%emt 0:00:33]} 14. Nc2 {[%emt 0:17:16]} b5 {[%emt 0:02:06]} 15. f4 {[%emt 0:04:43]} Ned7 {[%emt 0:00:54]} 16. Qxd6 {[%emt 0:02:35]} b4 {[%emt 0:06:28]} 17. e5 {[%emt 0:01:43]} bxc3 {[%emt 0:06:20]} 18. Rad1 {[%emt 0:07:29]} Qa5 {[%emt 0:06:38]} 19. exf6 {[%emt 0:05:20]} Bf8 {[%emt 0:01:15]} 20. Qd3 {[%emt 0:00:14]} Nxf6 {[%emt 0:00:42]} 21. g4 {[%emt 0:01:15]} Nxg4 {[%emt 0:27:05]} 22. hxg4 {[%emt 0:00:05]} Bxg4 {[%emt 0:00:05]} 23. Rc1 {[%emt 0:09:50]} Bf5 {[%emt 0:02:18]} 24. Qf1 {[%emt 0:00:04]} Qxa2 {[%emt 0:00:32]} 25. Na1 {[%emt 0:00:33]} Rbd8 {[%emt 0:13:50]} 26. Bd5 {[%emt 0:01:55]} Qa5 {[%emt 0:07:04]} 27. Bf2 {[%emt 0:05:43]} Bg7 {[%emt 0:03:33]} 28. Nc2 {[%emt 0:01:32]} Qc7 {[%emt 0:02:45]} 29. Ne3 {[%emt 0:00:11]} Bc8 {[%emt 0:04:11]} 30. Bh4 {[%emt 0:03:05]} Bd4 {[%emt 0:02:14]} 31. Bxd8 {[%emt 0:00:24]} Qxd8 {[%emt 0:00:04]} 32. Qf3 {[%emt 0:00:15]} Re7 {[%emt 0:05:28]} 33. Kg2 {[%emt 0:00:21]} Qd7 {[%emt 0:00:32]} 34. Nc2 {[%emt 0:02:22]} Bf6 {[%emt 0:00:21]} 35. Rxe7 {[%emt 0:00:41]} Qxe7 {[%emt 0:00:11]} 36. Re1 {[%emt 0:00:17]} Qc7 {[%emt 0:00:16]} 37. Ne3 {[%emt 0:00:51]} Kg7 {[%emt 0:01:13]} 38. Re2 {[%emt 0:01:36]} h5 {[%emt 0:00:25]} 39. f5 {[%emt 0:00:53]} Qe5 {[%emt 0:00:34]} 40. fxg6 {[%emt 0:00:00]} fxg6 {[%emt 0:00:00]} 41. Qg3 {[%emt 0:02:32]} Qxg3+ {[%emt 0:04:17]} 42. Kxg3 {[%emt 0:00:17]} Be5+ {[%emt 0:00:25]} 43. Kg2 {[%emt 0:00:29]} g5 {[%emt 0:01:38]} 44. Be4 {[%emt 0:01:06]} g4 {[%emt 0:04:23]} 45. Bf5 {[%emt 0:00:27]} Bxf5 {[%emt 0:07:24]} 46. Nxf5+ {[%emt 0:00:17]} Kf6 {[%emt 0:00:02]} 47. Ne3 {[%emt 0:02:06]} Bd4 {[%emt 0:00:39]} 48. Nd5+ {[%emt 0:05:27]} Kf5 {[%emt 0:02:11]} 49. b4 {[%emt 0:00:52]} h4 {[%emt 0:03:09]} 50. b5 {[%emt 0:02:59]} h3+ {[%emt 0:03:11]} 51. Kg3 {[%emt 0:02:14]} Be5+ {[%emt 0:02:06]} 52. Kh4 {[%emt 0:00:05]} h2 {[%emt 0:01:08]} 53. Re1 {[%emt 0:00:59]} axb5 {[%emt 0:03:06]} 54. cxb5 {[%emt 0:00:04]} c2 {[%emt 0:01:34]} 55. b6 {[%emt 0:04:28]} Bb2 {[%emt 0:00:09]} 56. Ne3+ {[%emt 0:00:03]} Kf4 {[%emt 0:01:37]} 57. b7 {[%emt 0:00:37]} Bf6+ {[%emt 0:01:31]} 58. Kh5 {[%emt 0:00:03]} Be5 {[%emt 0:01:00]} 59. Nxg4 {[%emt 0:00:18]} 1-0